bitfinex/quotes_BTCUSD_20250711
["timestamp","ask_amount","ask_price","bid_price","bid_amount"]
[1752249657904,0.07352684,116970.0,116960.0,1.20109556]
[1752249658289,0.06894599,116970.0,116960.0,1.31510438]
[1752249658476,0.00049972,116970.0,116960.0,1.34650438]
[1752249658680,0.00049972,116970.0,116960.0,1.32940534]
[1752249658921,0.00049972,116970.0,116960.0,1.32085549]
[1752249659343,0.00049972,116970.0,116960.0,1.32940542]
[1752249659514,0.00049972,116970.0,116960.0,1.3379552]
[1752249659723,0.00049972,116970.0,116960.0,1.34850491]
[1752249660101,0.00049972,116970.0,116960.0,1.33140542]
[1752249660329,0.00049972,116970.0,116960.0,1.35705431]
[1752249660555,0.00349972,116970.0,116960.0,1.35705431]
[1752249660791,0.00349972,116970.0,116960.0,1.72915431]
[1752249661339,0.00349972,116970.0,116960.0,0.08742993]
[1752249661535,0.00670972,116970.0,116960.0,0.08752993]
[1752249661848,0.00662698,116970.0,116960.0,0.08752993]
[1752249662193,0.01517566,116970.0,116960.0,0.0021]
[1752249662393,0.02372428,116970.0,116960.0,0.0021]
[1752249662608,0.04082246,116970.0,116960.0,0.0021]
[1752249662804,0.19170917,116970.0,116960.0,0.0021]
[1752249663011,0.25950917,116970.0,116960.0,0.0021]
[1752249663467,0.28516017,116970.0,116960.0,0.0021]
[1752249663675,0.24936017,116970.0,116960.0,0.0021]
[1752249664294,0.25436017,116970.0,116960.0,0.0021]
[1752249664469,0.23090827,116970.0,116960.0,0.0021]
[1752249664712,0.05492426,116970.0,116960.0,0.51088716]
[1752249664862,0.23445732,116970.0,116960.0,0.51088716]
[1752249665065,0.05492418,116970.0,116960.0,0.0021]
[1752249665269,0.04316528,116970.0,116960.0,0.0021]
[1752249665625,0.03461652,116970.0,116960.0,0.0001]
[1752249665864,0.04316513,116970.0,116960.0,0.51188716]
[1752249666032,0.23424702,116970.0,116960.0,0.51188716]
[1752249666182,0.22035987,116970.0,116960.0,0.0031]
[1752249666385,0.25195987,116970.0,116960.0,0.0001]
[1752249666791,0.25195987,116970.0,116960.0,0.0011]
[1752249667457,0.26050834,116970.0,116960.0,0.0011]
[1752249667592,0.02906798,116970.0,116960.0,0.50988716]
[1752249668244,0.0461652,116970.0,116960.0,0.50988716]
[1752249668418,0.02906798,116970.0,116960.0,0.66484716]
[1752249668631,0.00341698,116970.0,116960.0,0.66789716]
[1752249669024,0.00341698,116970.0,116960.0,0.78632709]
[1752249669305,0.00041698,116970.0,116960.0,0.9658755]
[1752249669485,0.00041698,116970.0,116960.0,0.78632709]
[1752249669653,0.00441698,116970.0,116960.0,0.78532709]
[1752249669825,0.01296559,116970.0,116960.0,0.78732709]
[1752249670029,0.20104763,116970.0,116960.0,0.0021]
[1752249670250,0.20104807,116970.0,116960.0,0.15706]
[1752249670450,0.20402807,116970.0,116960.0,0.15706]
[1752249670655,0.20402807,116970.0,116960.0,0.0021]
[1752249670656,0.26634371,116970.0,116960.0,0.0021]
[1752249670853,0.22627924,116970.0,116960.0,0.0021]
[1752249671033,0.25777924,116970.0,116960.0,0.0021]
[1752249671249,0.22627924,116970.0,116960.0,0.0021]
[1752249671649,0.21773019,116970.0,116960.0,0.0021]
[1752249672140,0.18693019,116970.0,116960.0,0.0021]
[1752249672305,0.20104748,116970.0,116960.0,0.0021]
[1752249672507,0.20402807,116970.0,116960.0,0.0021]
[1752249672765,0.19547924,116970.0,116960.0,0.0021]
[1752249673595,0.18693019,116970.0,116960.0,0.0021]
[1752249674414,0.18683994,116970.0,116960.0,0.0021]
[1752249674948,0.18683994,116970.0,116960.0,0.0001]
[1752249675373,0.01585549,116970.0,116960.0,0.50888716]
[1752249675579,0.03852206,116970.0,116960.0,0.50988716]
[1752249675789,0.00432673,116970.0,116960.0,0.80066572]
[1752249675940,0.00432673,116970.0,116960.0,0.8177655]
[1752249676141,0.00432673,116970.0,116960.0,0.12087993]
[1752249676358,0.00432673,116970.0,116960.0,0.63180457]
[1752249676563,0.00432673,116970.0,116960.0,0.62561709]
[1752249676782,0.22628862,116970.0,116960.0,0.0001]
[1752249676994,0.22628862,116970.0,116960.0,0.0021]
[1752249678003,0.68411855,116970.0,116960.0,0.0021]
[1752249678240,0.68411855,116970.0,116960.0,0.0001]
[1752249678785,0.65171855,116970.0,116960.0,0.0011]
[1752249680084,0.71261979,116970.0,116960.0,0.0011]
[1752249680494,0.52683979,116970.0,116960.0,0.0011]
[1752249680702,0.68167979,116970.0,116960.0,0.0011]
[1752249681109,0.67313074,116970.0,116960.0,0.0011]
[1752249681313,0.67869994,116970.0,116960.0,0.0011]
[1752249681557,0.52368895,116970.0,116960.0,0.0011]
[1752249681723,0.54078683,116970.0,116960.0,0.0011]
[1752249681872,0.00415574,116970.0,116960.0,0.50988716]
[1752249682083,0.00415574,116970.0,116960.0,0.54483716]
[1752249682304,0.00415574,116970.0,116960.0,0.63026709]
[1752249682735,0.00415574,116970.0,116960.0,0.11842993]
[1752249682736,0.02125303,116970.0,116960.0,0.11842993]
[1752249682973,0.19223763,116970.0,116960.0,0.15594]
[1752249683147,0.02423362,116970.0,116960.0,0.0011]
[1752249683347,0.00415574,116970.0,116960.0,0.0011]
[1752249683565,0.02980208,116970.0,116960.0,0.0011]
[1752249683767,0.03835106,116970.0,116960.0,0.50988716]
[1752249683968,0.02125311,116970.0,116960.0,0.0011]
[1752249684459,0.00415574,116970.0,116960.0,0.54278716]
[1752249684679,0.02125325,116970.0,116960.0,0.54278716]
[1752249684882,0.01270442,116970.0,116960.0,0.54278716]
[1752249685108,0.00415574,116970.0,116960.0,0.54278716]
[1752249685495,0.02125318,116970.0,116960.0,0.034]
[1752249685697,0.03835136,116970.0,116960.0,0.50988716]
[1752249685906,0.20933537,116970.0,116960.0,0.0011]
[1752249686279,0.02980216,116970.0,116960.0,0.0011]
[1752249686405,0.00415574,116970.0,116960.0,0.50988716]
[1752249686813,0.01270435,116970.0,116960.0,0.50988716]
[1752249687018,0.00415574,116970.0,116960.0,0.50988716]
[1752249687795,0.00415574,116970.0,116960.0,0.54583716]
[1752249688538,0.01270442,116970.0,116960.0,0.50988716]
[1752249688744,0.00415574,116970.0,116960.0,0.50988716]
[1752249688980,0.00415574,116970.0,116960.0,0.54483716]
[1752249689131,0.01270435,116970.0,116960.0,0.54483716]
[1752249689741,0.00415574,116970.0,116960.0,0.54483716]
[1752249690797,0.00415574,116970.0,116960.0,0.71583579]
[1752249690970,0.00415574,116970.0,116960.0,0.8183655]
[1752249691373,0.00415574,116970.0,116960.0,0.83546477]
[1752249691541,0.00415574,116970.0,116960.0,0.8489655]
[1752249691757,0.00415574,116970.0,116960.0,0.63026709]
[1752249691961,0.00415574,116970.0,116960.0,0.80981565]
[1752249692157,0.00415574,116970.0,116960.0,0.12147993]
[1752249692368,0.02423332,116970.0,116960.0,0.15578]
[1752249692585,0.19521793,116970.0,116960.0,0.15578]
[1752249693039,0.02423392,116970.0,116960.0,0.15578]
[1752249693241,0.19521793,116970.0,116960.0,0.15578]
[1752249693678,0.22831793,116970.0,116960.0,0.0011]
[1752249693885,1.18538604,116970.0,116960.0,0.0011]
[1752249694487,6.18538604,116970.0,116960.0,0.0011]
[1752249694779,5.67659888,116970.0,116960.0,0.0011]
[1752249694973,0.83123888,116970.0,116960.0,0.0011]
[1752249695104,0.83123888,116970.0,116960.0,0.0001]
[1752249695316,0.82723888,116970.0,116960.0,0.0001]
[1752249695520,0.83023888,116970.0,116960.0,0.0001]
[1752249695952,0.91566881,116970.0,116960.0,0.0001]
[1752249696169,0.83023888,116970.0,116960.0,0.0001]
[1752249696381,0.79883888,116970.0,116960.0,0.0001]
[1752249696590,0.71340895,116970.0,116960.0,0.0001]
[1752249697534,0.74500895,116970.0,116960.0,0.0001]
[1752249697696,1.33922604,116970.0,116960.0,0.0001]
[1752249697899,1.42465597,116970.0,116960.0,0.0001]
[1752249698101,0.18814622,116930.0,116920.0,0.1]
[1752249698439,0.01710372,116930.0,116920.0,0.1]
[1752249698590,0.16315132,116940.0,116920.0,0.61200716]
[1752249698799,0.04275812,116940.0,116930.0,0.54460716]
[1752249698999,0.04275812,116940.0,116930.0,0.88308336]
[1752249699000,0.025656,116940.0,116930.0,0.88308336]
[1752249699216,0.025656,116940.0,116930.0,0.85308336]
[1752249699589,0.01710052,116950.0,116930.0,0.85342734]
[1752249699760,0.37152518,116960.0,116940.0,0.50878716]
[1752249699995,0.025652,116960.0,116940.0,0.50878716]
[1752249700215,0.00854861,116970.0,116950.0,0.54138716]
[1752249700435,0.21685527,116980.0,116960.0,0.50878716]
[1752249700659,0.025649,116980.0,116970.0,0.50878716]
[1752249700884,0.01327301,116990.0,116970.0,0.69916716]
[1752249701104,0.02564393,116980.0,116970.0,0.19038]
[1752249701316,0.03419218,116980.0,116970.0,0.66334716]
[1752249701743,0.20516222,116980.0,116970.0,0.15456]
[1752249701861,0.20566204,116980.0,116960.0,0.62833709]
[1752249702218,0.00855007,116950.0,116940.0,0.15778]
[1752249702459,0.17412401,116970.0,116940.0,0.15456]
[1752249702675,0.35709818,116970.0,116950.0,0.54460716]
[1752249702890,0.35709774,116970.0,116950.0,0.54460716]
[1752249703093,0.36564686,116970.0,116950.0,0.54460716]
[1752249703297,0.54518007,116970.0,116960.0,0.001]
[1752249703497,0.53122233,116970.0,116960.0,0.001]
[1752249703714,0.76408219,116970.0,116960.0,0.001]
[1752249703933,6.52286935,116970.0,116960.0,0.001]
[1752249704148,0.01710329,116930.0,116920.0,0.1]
[1752249704350,0.34266638,116930.0,116920.0,0.1]
[1752249704559,0.34580638,116930.0,116920.0,0.1]
[1752249704772,0.19728388,116930.0,116920.0,0.1]
[1752249704986,0.3502185,116930.0,116920.0,0.1]
[1752249705188,0.00855161,116930.0,116920.0,0.63948716]
[1752249705392,0.21379101,116940.0,116920.0,0.63948716]
[1752249705599,0.38275968,116940.0,116920.0,0.13426398]
[1752249705815,0.005,116930.0,116920.0,0.13426398]
[1752249706015,0.01355146,116930.0,116920.0,0.64305114]
[1752249706255,0.005,116930.0,116920.0,0.64305114]
[1752249706464,0.005,116930.0,116920.0,0.72848107]
[1752249706668,0.03420873,116940.0,116930.0,0.0307]
[1752249706669,0.025658,116940.0,116930.0,0.0307]
[1752249706877,0.025658,116940.0,116930.0,0.54270716]
[1752249707082,0.025658,116940.0,116930.0,0.69718716]
[1752249707461,0.025658,116940.0,116930.0,0.78261709]
[1752249707993,0.006,116940.0,116930.0,1.00326347]
[1752249708214,0.006,116940.0,116930.0,1.01181508]
[1752249708362,0.00854941,116960.0,116940.0,0.0307]
[1752249708563,0.0170989,116960.0,116950.0,0.50878716]
[1752249708987,0.00854941,116960.0,116950.0,0.50878716]
[1752249709147,0.35709737,116970.0,116950.0,0.54270716]
[1752249709343,0.35709737,116970.0,116950.0,0.18836]
[1752249709344,0.01709883,116960.0,116950.0,0.18836]
[1752249709551,0.01709758,116970.0,116950.0,0.69714716]
[1752249709754,0.008,116960.0,116950.0,0.69714716]
[1752249710003,0.008,116960.0,116950.0,0.78257709]
[1752249710237,0.008,116960.0,116950.0,0.81327709]
[1752249710829,0.008,116960.0,116950.0,0.78257709]
[1752249711058,0.01709876,116960.0,116950.0,0.78257709]
[1752249711262,0.03164715,116970.0,116950.0,0.78357709]
[1752249711459,0.19663335,116970.0,116950.0,0.78257709]
[1752249711661,0.01709795,116970.0,116950.0,0.78257709]
[1752249711874,0.01709758,116970.0,116950.0,0.78257709]
[1752249712301,0.00854868,116970.0,116950.0,0.78257709]
[1752249712504,0.01709876,116960.0,116950.0,0.78357709]
[1752249712718,0.02564832,116960.0,116950.0,0.001]
[1752249713026,0.03419795,116960.0,116950.0,0.15436]
[1752249713153,0.19664806,116960.0,116950.0,0.15636]
[1752249713352,0.01709875,116960.0,116950.0,0.15636]
[1752249713656,0.09374314,116980.0,116970.0,0.0314]
[1752249713849,0.01709466,116990.0,116970.0,0.81703439]
[1752249714046,0.1709567,116990.0,116970.0,0.11682993]
[1752249714238,0.0256443,116980.0,116970.0,0.15432]
[1752249714440,0.20830255,116980.0,116950.0,0.57188716]
[1752249714643,0.00854861,116970.0,116950.0,0.77993709]
[1752249714844,0.03419488,116970.0,116950.0,0.78315709]
[1752249715060,0.03419488,116970.0,116960.0,0.50878716]
[1752249715263,0.00049982,116980.0,116970.0,0.0329]
[1752249715397,0.00904777,116980.0,116970.0,0.69600716]
[1752249715609,0.0090477,116980.0,116970.0,0.69600716]
[1752249715820,0.01759573,116980.0,116970.0,0.69600716]
[1752249716016,0.20566168,116980.0,116970.0,0.15432]
[1752249716344,0.02564642,116970.0,116960.0,0.15428]
[1752249716555,0.18808219,116970.0,116960.0,0.15428]
[1752249716732,0.00449982,116980.0,116970.0,0.0321]
[1752249716932,0.00449982,116980.0,116970.0,0.85081928]
[1752249717287,0.00449982,116980.0,116970.0,0.86791694]
[1752249717502,0.00449982,116980.0,116970.0,0.86791701]
[1752249717710,0.00449982,116980.0,116970.0,0.85081928]
[1752249717834,0.00449982,116980.0,116970.0,0.85936832]
[1752249718035,0.00449982,116980.0,116970.0,0.86036832]
[1752249718266,0.00049982,116980.0,116970.0,0.34303226]
[1752249718474,0.00049982,116980.0,116970.0,0.85081942]
[1752249718682,0.00049982,116980.0,116970.0,0.15394993]
[1752249718882,0.00049982,116980.0,116970.0,0.78677709]
[1752249719112,0.00049982,116980.0,116970.0,0.27798993]
[1752249719273,0.00049982,116980.0,116970.0,0.27476993]
[1752249719274,0.00149982,116980.0,116970.0,0.27476993]
[1752249719478,0.23395388,116980.0,116970.0,0.003]
[1752249719676,0.29809679,116980.0,116970.0,0.003]
[1752249719883,0.25760585,116980.0,116970.0,0.003]
[1752249720280,0.22540585,116980.0,116970.0,0.003]
[1752249720486,0.00149982,116980.0,116970.0,0.51178716]
[1752249720746,0.02714346,116980.0,116970.0,0.1572]
[1752249721033,0.02714346,116980.0,116970.0,0.70220716]
[1752249721034,0.00149982,116980.0,116970.0,0.70220716]
[1752249721252,0.00149982,116980.0,116970.0,0.96717022]
[1752249721456,0.00149982,116980.0,116970.0,1.01286796]
[1752249721651,0.00149982,116980.0,116970.0,0.99577022]
[1752249721874,0.00149982,116980.0,116970.0,0.71623709]
[1752249722257,0.00149982,116980.0,116970.0,0.89577015]
[1752249722510,0.00149982,116980.0,116970.0,0.90431942]
[1752249722676,0.00149982,116980.0,116970.0,0.71723709]
[1752249723246,0.00049982,116980.0,116970.0,0.71723709]
[1752249723685,0.00549982,116980.0,116970.0,0.66303709]
[1752249723918,0.00049982,116980.0,116970.0,0.27676993]
[1752249724109,0.00049982,116980.0,116970.0,0.9565411]
[1752249724311,0.00349982,116980.0,116970.0,0.9650903]
[1752249724514,0.00349982,116980.0,116970.0,0.9979903]
[1752249724660,0.00349982,116980.0,116970.0,1.00653942]
[1752249724858,0.00349982,116980.0,116970.0,0.9979903]
[1752249725097,0.00349982,116980.0,116970.0,0.48065394]
[1752249725298,0.00349982,116980.0,116970.0,1.01508811]
[1752249725507,0.00349982,116980.0,116970.0,0.81845709]
[1752249725747,0.00349982,116980.0,116970.0,0.82700621]
[1752249725969,0.00349982,116980.0,116970.0,0.81845709]
[1752249726828,0.00349982,116980.0,116970.0,0.78555709]
[1752249727040,0.00349982,116980.0,116970.0,0.001]
[1752249727382,0.00349982,116980.0,116970.0,0.78671439]
[1752249727597,0.0120477,116980.0,116970.0,0.78457709]
[1752249727945,0.00349982,116980.0,116970.0,0.78457709]
[1752249728348,0.02059558,116980.0,116970.0,0.27578993]
[1752249728533,0.00349982,116980.0,116970.0,0.78457709]
[1752249730220,0.00349982,116980.0,116970.0,0.97265927]
[1752249730426,0.00349982,116980.0,116970.0,0.78457709]
[1752249731493,0.0205958,116980.0,116970.0,0.001]
[1752249731723,0.00349982,116980.0,116970.0,0.9554511]
[1752249731930,0.00349982,116980.0,116970.0,0.97254927]
[1752249732136,0.00349982,116980.0,116970.0,0.98109817]
[1752249732346,0.00349982,116980.0,116970.0,1.01994685]
[1752249733227,0.00349982,116980.0,116970.0,1.01139817]
[1752249733646,0.00349982,116980.0,116970.0,1.00284927]
[1752249733855,0.00349982,116980.0,116970.0,0.9943003]
[1752249734066,0.00349982,116980.0,116970.0,0.65980709]
[1752249734285,0.00349982,116980.0,116970.0,0.81368709]
[1752249734496,0.00349982,116980.0,116970.0,0.09051993]
[1752249734710,0.00349982,116980.0,116970.0,0.78488709]
[1752249735123,0.00349982,116980.0,116970.0,0.9558711]
[1752249735124,0.00049982,116980.0,116970.0,0.9558711]
[1752249735333,0.00049982,116980.0,116970.0,0.78488709]
[1752249735576,0.00249982,116980.0,116970.0,0.96442022]
[1752249735796,0.00249982,116980.0,116970.0,0.78488709]
[1752249736020,0.00249982,116980.0,116970.0,0.27609993]
[1752249736238,0.00249982,116980.0,116970.0,0.96442022]
[1752249736868,0.00249982,116980.0,116970.0,0.78488709]
[1752249737080,0.00249982,116980.0,116970.0,0.9644203]
[1752249737297,0.00249982,116980.0,116970.0,0.98151847]
[1752249737499,0.00249982,116980.0,116970.0,0.99861583]
[1752249737702,2.36e-06,116980.0,116970.0,1.03011583]
[1752249739202,0.0004,117000.0,116980.0,0.18806215]
[1752249739389,0.0004,117000.0,116990.0,0.93603402]
[1752249739390,0.00044994,117000.0,116990.0,0.93603402]
[1752249739601,0.00044994,117000.0,116990.0,0.93698709]
[1752249739795,0.00899629,117000.0,116990.0,0.39599993]
[1752249739994,0.00899629,117000.0,116990.0,0.90169709]
[1752249740170,0.00044994,117000.0,116990.0,0.39599993]
[1752249740374,0.00044994,117000.0,116990.0,0.90478709]
[1752249740618,0.00044994,117000.0,116990.0,0.93698709]
[1752249741478,0.00044994,117000.0,116990.0,1.11648953]
[1752249741639,0.00044994,117000.0,116990.0,1.14848953]
[1752249741858,9.99e-06,117000.0,116990.0,0.96898709]
[1752249742053,0.01631076,117010.0,116990.0,0.96898709]
[1752249742268,0.01709131,117010.0,116990.0,0.42819993]
[1752249742430,0.01749014,117020.0,117000.0,0.54551391]
[1752249742633,0.00899487,117020.0,117010.0,0.30732]
[1752249742828,0.01754005,117020.0,117010.0,0.81610716]
[1752249743077,0.01753997,117020.0,117010.0,0.81610716]
[1752249743250,0.00044991,117020.0,117010.0,0.81919716]
[1752249743453,0.0175399,117020.0,117010.0,0.81919716]
[1752249743806,0.01753983,117020.0,117010.0,0.81919716]
[1752249744009,0.00044991,117020.0,117010.0,0.31041]
[1752249744163,0.01754005,117020.0,117010.0,0.81610716]
[1752249744386,0.00899487,117020.0,117010.0,0.30732]
[1752249744729,0.00036719,117020.0,117010.0,0.81919716]
[1752249744872,0.00036719,117020.0,117010.0,0.85149716]
[1752249745286,0.00036719,117020.0,117010.0,0.93692709]
[1752249745637,0.0174574,117020.0,117010.0,0.90153709]
[1752249745837,0.00036719,117020.0,117010.0,0.39274993]
[1752249746045,0.0260025,117020.0,117010.0,0.30732]
[1752249746232,0.01745718,117020.0,117010.0,0.30732]
[1752249746555,0.00036719,117020.0,117010.0,0.81919716]
[1752249746705,0.00036719,117020.0,117010.0,0.42793993]
[1752249747034,0.00036719,117020.0,117010.0,0.94527336]
[1752249747280,0.00036719,117020.0,117010.0,0.96822709]
[1752249747490,0.00036719,117020.0,117010.0,1.15624497]
[1752249747697,0.00036719,117020.0,117010.0,1.17333671]
[1752249748333,0.00036719,117020.0,117010.0,1.17433671]
[1752249748535,0.00036719,117020.0,117010.0,1.28161059]
[1752249748745,0.00436719,117020.0,117010.0,1.30774566]
[1752249748949,0.0004,117040.0,117030.0,0.17944109]
[1752249749163,0.0004,117040.0,117030.0,1.1282673]
[1752249749336,0.0004,117040.0,117030.0,1.14535597]
[1752249749572,0.0004,117040.0,117030.0,1.14844597]
[1752249749776,0.0004,117040.0,117030.0,1.17924597]
[1752249750151,0.0014,117040.0,117030.0,1.17924597]
[1752249750904,0.0014,117040.0,117030.0,1.18124597]
[1752249751551,0.0014,117040.0,117030.0,1.52124597]
[1752249751771,0.0014,117040.0,117030.0,1.62851985]
[1752249751960,0.0014,117040.0,117030.0,1.11102839]
[1752249752149,0.0014,117040.0,117030.0,1.51254167]
[1752249752332,0.0004,117040.0,117030.0,1.51254167]
[1752249752537,0.0004,117040.0,117030.0,2.05283782]
[1752249752733,0.0004,117040.0,117030.0,1.54505066]
[1752249752932,0.0004,117040.0,117030.0,2.05283782]
[1752249753134,0.0004,117050.0,117040.0,0.53651311]
[1752249753330,0.0004,117050.0,117040.0,1.70400736]
[1752249753527,0.0004,117050.0,117040.0,2.01068736]
[1752249753764,0.0004,117050.0,117040.0,0.98456947]
[1752249753986,0.0004,117050.0,117040.0,1.3177002]
[1752249754448,0.0004,117050.0,117040.0,1.86228736]
[1752249755024,0.0004,117050.0,117040.0,1.3535002]
[1752249755231,0.0004,117050.0,117040.0,1.3534602]
[1752249755427,0.0004,117050.0,117040.0,1.31511663]
[1752249755699,0.0004,117050.0,117040.0,1.1704202]
[1752249755836,0.0004,117050.0,117040.0,1.3236602]
[1752249756530,0.0004,117050.0,117040.0,1.43030018]
[1752249756896,0.0004,117050.0,117040.0,1.3236602]
[1752249757308,0.0004,117050.0,117040.0,1.43029911]
[1752249758342,0.0004,117060.0,117050.0,0.18795356]
[1752249758559,0.00054975,117060.0,117050.0,1.2036282]
[1752249758714,0.00054975,117060.0,117050.0,1.19833514]
[1752249758918,0.00054975,117060.0,117050.0,1.18979201]
[1752249759125,0.00054975,117060.0,117050.0,0.50159442]
[1752249759347,0.00054975,117060.0,117050.0,1.19833521]
[1752249759531,0.00054975,117060.0,117050.0,1.21542111]
[1752249759732,0.00054975,117060.0,117050.0,1.24602111]
[1752249760136,0.00054975,117060.0,117050.0,1.22039208]
[1752249760340,0.00054975,117060.0,117050.0,1.23747835]
[1752249760756,0.0782545,117080.0,117050.0,1.23747842]
[1752249760965,0.05263138,117080.0,117060.0,0.90247274]
[1752249761169,0.06971341,117080.0,117070.0,0.30612]
[1752249761418,0.24907793,117080.0,117070.0,0.30612]
[1752249761635,0.23727336,117080.0,117050.0,0.10659449]
[1752249761754,0.06645,117070.0,117060.0,0.15304]
[1752249761956,0.01149087,117080.0,117060.0,0.74725709]
[1752249762207,0.02003109,117080.0,117070.0,0.50878716]
[1752249762399,0.03711327,117080.0,117060.0,0.23846993]
[1752249762607,0.03711327,117080.0,117060.0,0.74725709]
[1752249762608,0.00854124,117070.0,117060.0,0.74725709]
[1752249763046,0.00854204,117060.0,117050.0,0.10659449]
[1752249763253,0.00854197,117060.0,117050.0,0.23842993]
[1752249763394,0.02003408,117060.0,117050.0,0.23842993]
[1752249763618,0.02003401,117060.0,117050.0,0.23842993]
[1752249763815,0.00295,117060.0,117050.0,0.23842993]
[1752249764017,0.01149197,117060.0,117050.0,0.74721709]
[1752249764365,0.06117473,117070.0,117050.0,0.74721709]
[1752249764778,0.240555,117070.0,117050.0,0.74721709]
[1752249764992,0.04449014,117090.0,117060.0,0.18986185]
[1752249765195,0.05303006,117090.0,117070.0,0.81466716]
[1752249765399,0.05302978,117090.0,117080.0,0.50878716]
[1752249765601,0.05302978,117090.0,117070.0,0.39130993]
[1752249765803,0.05302978,117090.0,117070.0,0.90009709]
[1752249766006,0.01149065,117080.0,117070.0,0.30788]
[1752249766163,0.10061363,117080.0,117070.0,0.30788]
[1752249766374,0.26289634,117080.0,117070.0,0.30788]
[1752249766744,0.25435518,117080.0,117070.0,0.30788]
[1752249766982,0.25435518,117080.0,117070.0,0.3078]
[1752249767183,0.26289627,117080.0,117070.0,0.3078]
[1752249767383,0.26289627,117080.0,117070.0,0.3058]
[1752249767584,0.25435547,117080.0,117070.0,0.3058]
[1752249767791,0.25735547,117080.0,117070.0,0.3078]
[1752249768178,0.25735547,117080.0,117070.0,0.3058]
[1752249768380,0.25735547,117080.0,117070.0,0.3079]
[1752249768579,0.06945,117080.0,117070.0,0.3079]
[1752249768776,0.04709058,117080.0,117070.0,0.81668716]
[1752249769077,0.06122232,117080.0,117070.0,0.81668716]
[1752249769335,0.01154058,117080.0,117070.0,0.81668716]
[1752249769569,0.003,117080.0,117070.0,0.81668716]
[1752249769771,0.003,117080.0,117070.0,0.90536709]
[1752249770258,0.003,117080.0,117070.0,1.13472985]
[1752249770676,0.003,117080.0,117070.0,1.50662985]
[1752249770884,0.003,117080.0,117070.0,1.53617205]
[1752249771116,0.003,117080.0,117070.0,1.50662985]
[1752249771519,0.003,117080.0,117070.0,1.35358985]
[1752249771955,0.003,117080.0,117070.0,1.2300406]
[1752249772460,0.003,117080.0,117070.0,1.44004496]
[1752249772777,0.003,117080.0,117070.0,1.43504496]
[1752249772986,0.003,117080.0,117070.0,1.41796212]
[1752249773346,0.003,117080.0,117070.0,1.4219622]
[1752249773503,0.003,117080.0,117070.0,1.41342045]
[1752249773713,0.003,117080.0,117070.0,1.43050373]
[1752249773968,0.003,117080.0,117070.0,1.47164511]
[1752249774168,0.00143766,117080.0,117070.0,1.62432511]
[1752249774379,0.00143766,117080.0,117070.0,1.5175116]
[1752249775835,0.0004,117090.0,117080.0,0.60224597]
[1752249776054,0.0004,117090.0,117080.0,1.19646306]
[1752249776269,0.0004,117090.0,117080.0,1.22925526]
[1752249776885,0.0004,117090.0,117080.0,1.73804242]
[1752249777094,0.0004,117090.0,117080.0,1.19971306]
[1752249777305,0.0004,117090.0,117080.0,1.20471306]
[1752249777758,0.0004,117090.0,117080.0,1.71350022]
[1752249777759,0.00015319,117090.0,117080.0,1.71350022]
[1752249777972,0.00015319,117090.0,117080.0,1.20471306]
[1752249778381,0.00015319,117090.0,117080.0,1.20671306]
[1752249778747,0.00015319,117090.0,117080.0,1.71550022]
[1752249778949,0.00015319,117090.0,117080.0,1.91431172]
[1752249779180,0.0003412,117110.0,117100.0,0.19641242]
[1752249779335,0.0003412,117110.0,117100.0,1.78779403]
[1752249779570,0.00084056,117110.0,117100.0,1.82019403]
[1752249779774,0.00084056,117110.0,117100.0,1.82344403]
[1752249780216,0.00084056,117110.0,117100.0,1.67651437]
[1752249780416,0.00284056,117110.0,117100.0,2.01951437]
[1752249780727,0.00284056,117110.0,117100.0,1.02702512]
[1752249781139,0.002,117130.0,117120.0,0.73736604]
[1752249781355,0.00214968,117130.0,117120.0,1.12771597]
[1752249781561,0.00214968,117130.0,117120.0,1.13096597]
[1752249781971,0.00214968,117130.0,117120.0,0.62217881]
[1752249782172,0.00214968,117130.0,117120.0,1.13096597]
[1752249783537,0.00214968,117130.0,117120.0,1.13596597]
[1752249783745,0.00214968,117130.0,117120.0,1.29097791]
[1752249783952,0.00214968,117130.0,117120.0,1.26536405]
[1752249784159,0.00214968,117130.0,117120.0,1.29097805]
[1752249784363,0.00214968,117130.0,117120.0,1.25034017]
[1752249784594,0.00214968,117130.0,117120.0,1.23855222]
[1752249784799,0.00214968,117130.0,117120.0,1.24709025]
[1752249785002,0.00214968,117130.0,117120.0,1.05904903]
[1752249785208,0.00509968,117130.0,117120.0,1.05904903]
[1752249785411,0.00509968,117130.0,117120.0,0.90603709]
[1752249786009,0.002067,117130.0,117120.0,0.90103709]
[1752249786258,0.002067,117130.0,117120.0,0.39224993]
[1752249786496,0.005017,117130.0,117120.0,0.90503709]
[1752249786724,0.005017,117130.0,117120.0,0.39624993]
[1752249786943,0.005017,117130.0,117120.0,0.90503709]
[1752249787150,0.005017,117130.0,117120.0,0.90303709]
[1752249787910,0.005017,117130.0,117120.0,0.75063709]
[1752249788101,0.05449124,117130.0,117120.0,0.75059709]
[1752249788303,0.037417,117130.0,117120.0,0.8573624]
[1752249788466,0.04595393,117130.0,117120.0,0.8573624]
[1752249788669,0.25764211,117130.0,117120.0,0.11086531]
[1752249788873,0.25764211,117130.0,117120.0,0.26310531]
[1752249789570,0.25764211,117130.0,117120.0,0.77189247]
[1752249789685,0.037417,117130.0,117120.0,0.76789247]
[1752249789939,0.002067,117130.0,117120.0,0.7040824]
[1752249790160,0.002067,117130.0,117120.0,0.8594624]
[1752249790382,0.002067,117130.0,117120.0,0.8562824]
[1752249790383,0.003067,117130.0,117120.0,0.8562824]
[1752249790611,0.003067,117130.0,117120.0,1.05584128]
[1752249790827,0.003067,117130.0,117120.0,0.56047843]
[1752249791054,0.002067,117130.0,117120.0,0.97957597]
[1752249792366,0.002067,117130.0,117120.0,0.78001709]
[1752249792560,0.002067,117130.0,117120.0,1.08412021]
[1752249792771,0.00072085,117130.0,117120.0,0.38984993]
[1752249793013,0.00072085,117130.0,117120.0,0.89863709]
[1752249793165,0.00072085,117130.0,117120.0,0.90263709]
[1752249793375,0.00072085,117130.0,117120.0,0.0041]
[1752249793376,0.76252297,117130.0,117120.0,0.0041]
[1752249793591,1.1879529,117130.0,117120.0,0.182041]
[1752249793827,0.58220312,117120.0,117110.0,0.07631646]
[1752249794029,0.24321843,117110.0,117100.0,0.0001]
[1752249794230,0.14430843,117110.0,117100.0,0.0001]
[1752249794437,0.15284726,117110.0,117100.0,0.0001]
[1752249794635,0.15084726,117110.0,117100.0,0.0001]
[1752249795786,0.23627719,117110.0,117100.0,0.0001]
[1752249796738,0.24127719,117110.0,117100.0,0.0001]
[1752249797397,0.75006435,117110.0,117100.0,0.0001]
[1752249797614,0.59040518,117080.0,117070.0,0.07641646]
[1752249797777,1.48870227,117080.0,117070.0,0.0001]
[1752249797982,0.00854343,117040.0,117030.0,0.0021362]